bitfinex/quotes_ETHUSD_20250925
["timestamp","ask_amount","ask_price","bid_price","bid_amount"]
[1758809248015,0.39202429,4001.2,4000.9,0.69329437]
[1758809248332,0.39202429,4001.2,4000.8,0.792]
[1758809248333,0.39202429,4001.2,4000.6,0.792]
[1758809248643,0.39202429,4001.2,4000.5,0.792]
[1758809248935,6.90265991,4001.1,3999.9,2.50005458]
[1758809249105,2.49948656,4000.9,4000.0,2.49999078]
[1758809249304,4.511,4001.0,3999.7,0.792]
[1758809249600,2.49983249,4000.3,3999.0,4.81700881]
[1758809249804,2.50003647,4000.0,3999.1,0.55454801]
[1758809250103,2.49991956,4000.2,3999.1,0.55454801]
[1758809250303,2.49962955,4000.6,3999.3,0.792]
[1758809250510,2.4998542,4000.3,3999.4,0.45153424]
[1758809250713,3.0,4000.7,3999.5,0.02500312]
[1758809250913,8.753672,4000.6,3999.5,0.02500312]
[1758809251113,4.143476,4000.5,3999.5,0.792]
[1758809251316,2.015858,4000.5,3999.5,0.792]
[1758809251638,2.49975099,4000.4,3999.5,0.792]
[1758809251826,17.64784973,4000.3,3999.7,0.792]
[1758809252031,4.7544,4000.6,3999.5,0.792]
[1758809252226,7.9692563,4000.5,3999.5,0.792]
[1758809252543,5.316551,4000.4,3999.5,0.792]
[1758809252835,4.7544,4000.6,3999.6,0.0250025]
[1758809253036,7.25404461,4000.6,3999.6,0.0250025]
[1758809253239,2.49935989,4001.1,3999.9,0.792]
[1758809253425,2.49950048,4000.8,3999.8,0.792]
[1758809253632,2.4996791,4000.6,3999.8,0.792]
[1758809253827,2.4996791,4000.6,4000.5,0.9168]
[1758809254038,2.4996791,4000.6,3999.1,0.78794801]
[1758809254039,27.020825,4000.6,3999.1,0.78794801]
[1758809254234,2.50002174,4000.0,3999.8,0.1248]
[1758809254426,2.50001492,4000.0,3999.8,0.1248]
[1758809254640,0.2444,4000.0,3999.9,0.792]
[1758809254842,2.49981251,4000.3,3999.9,0.792]
[1758809255041,2.222676,4000.2,4000.1,0.9168]
[1758809255244,2.222676,4000.2,3999.2,0.258405]
[1758809255245,2.49996276,4000.1,3999.2,0.792]
[1758809255441,2.49991759,4000.2,3999.9,0.792]
[1758809255641,4.51,4000.4,3999.9,0.792]
[1758809255851,0.2444,4000.5,3999.5,0.792]
[1758809256045,2.49961037,4000.7,4000.4,0.792]
[1758809256239,0.1248,4001.2,4000.4,0.792]
[1758809256443,4.509,4001.0,4000.4,0.792]
[1758809256760,5.502986,4000.9,4000.4,0.792]
[1758809256923,7.65505609,4000.8,4000.4,0.792]
[1758809257222,4.874786,4000.7,4000.4,0.792]
[1758809257417,2.49968753,4000.5,4000.4,0.792]
[1758809257954,2.499875,4000.2,4000.1,0.002]
[1758809258338,28.277701,4000.2,4000.1,0.002]
[1758809258656,36.009975,4000.2,4000.1,0.002]
[1758809260858,36.009975,4000.2,3995.3,2.50288078]
[1758809260859,3.0,4000.1,3995.3,2.50288078]
[1758809261052,2.50114602,3998.2,3997.3,0.2498]
[1758809261253,4.509,3998.4,3997.4,0.4589]
[1758809261421,2.50123604,3998.1,3997.4,0.4589]
[1758809261621,2.50131318,3997.9,3997.4,0.002]
[1758809262034,21.53087218,3997.9,3997.4,0.002]
[1758809262322,4.69944418,3997.9,3997.4,0.002]
[1758809263040,17.72897818,3997.9,3997.4,0.002]
[1758809263427,20.99547818,3997.9,3997.4,0.002]
[1758809264061,32.47641018,3997.9,3997.4,0.002]
[1758809264241,31.44499218,3997.9,3997.4,0.002]
[1758809264572,2.50156347,3997.5,3997.4,0.002]
[1758809264730,3.0,3997.3,3995.8,0.7067]
[1758809264925,2.50213949,3996.6,3995.9,0.02502565]
[1758809265133,4.481481,3996.5,3995.8,0.7067]
[1758809265331,2.5022995,3996.4,3995.8,0.7067]
[1758809265532,4.509,3996.5,3995.8,3.20927923]
[1758809265843,4.509,3996.5,3995.9,2.52759077]
[1758809267144,2.50239937,3996.2,3995.5,2.50281461]
[1758809267344,4.509,3996.1,3995.4,0.002]
[1758809267866,2.084,3997.0,3995.9,2.50254188]
[1758809268064,6.21494636,3996.9,3996.0,0.73172502]
[1758809268366,6.21494636,3996.9,3995.8,0.792]
[1758809268367,6.08939228,3996.8,3995.8,0.792]
[1758809268668,3.9471,3996.9,3995.8,0.792]
[1758809268669,12.150888,3996.7,3996.2,0.792]
[1758809268830,0.2341,3997.3,3995.8,0.2498]
[1758809268831,2.50231464,3996.3,3995.8,0.792]
[1758809269041,2.50224828,3996.5,3995.8,0.792]
[1758809269238,7.37968228,3996.5,3995.8,0.792]
[1758809269437,4.177415,3996.4,3995.8,0.792]
[1758809269640,2.50225202,3996.4,3995.8,0.792]
[1758809269873,15.51302109,3996.3,3995.6,0.792]
[1758809270076,2.50232809,3996.3,3995.6,0.792]
[1758809270279,2.50220584,3996.5,3995.8,0.792]
[1758809270573,2.50249676,3996.1,3995.6,0.792]
[1758809270791,0.2665,3996.7,3995.4,0.002]
[1758809270792,0.2341,3997.0,3995.9,2.50252259]
[1758809270942,0.1248,3996.7,3996.1,0.792]
[1758809271143,4.363784,3996.6,3996.3,0.1248]
[1758809271755,4.363784,3996.6,3996.4,0.792]
[1758809271952,4.363784,3996.6,3996.3,0.1248]
[1758809272154,2.50281566,3995.5,3995.4,0.002]
[1758809272352,28.13488966,3995.5,3995.4,0.002]
[1758809272555,10.51241566,3995.5,3995.4,0.002]
[1758809272862,5.50306625,3995.1,3995.0,0.002]
[1758809273062,12.09706625,3995.1,3995.0,0.002]
[1758809273247,42.59766625,3995.1,3995.0,0.002]
[1758809273449,32.50312891,3995.0,3993.0,0.2498]
[1758809273679,3.0,3994.8,3993.0,0.2498]
[1758809273843,2.50387676,3993.9,3993.1,2.50427594]
[1758809274043,2.163395,3993.8,3993.1,0.4569]
[1758809274278,4.66733502,3993.8,3993.1,0.4569]
[1758809274464,2.115113,3993.7,3992.2,0.50969235]
[1758809274670,2.50394484,3993.7,3992.8,2.50450811]
[1758809274873,6.895245,3993.6,3992.7,0.2498]
[1758809275043,3.903586,3993.7,3992.7,0.52897]
[1758809275376,4.509,3993.9,3992.8,0.4569]
[1758809275594,0.2341,3995.1,3992.9,0.27484445]
[1758809275889,0.17343244,3994.7,3994.1,0.792]
[1758809276189,0.17343244,3994.7,3993.4,0.4569]
[1758809276190,15.36617089,3994.6,3993.4,0.4569]
[1758809276500,13.128289,3994.5,3993.8,0.792]
[1758809276779,2.086,3995.5,3994.6,0.792]
[1758809276992,0.2341,3996.0,3994.6,0.2498]
[1758809277150,2.50262775,3995.8,3994.9,0.792]
[1758809277450,2.086,3995.8,3995.1,0.792]
[1758809277645,6.652694,3995.7,3995.1,0.792]
[1758809277881,4.51,3995.7,3994.8,0.02503254]
[1758809278090,4.51,3995.7,3995.1,0.792]
[1758809278301,4.51,3995.7,3995.1,3.29506289]
[1758809278450,4.51,3995.7,3995.0,0.792]
[1758809278653,2.111919,3995.6,3994.6,0.2518]
[1758809278956,2.111919,3995.6,3994.7,0.792]
[1758809279481,2.111919,3995.6,3994.6,0.002]
[1758809279482,0.5006,3995.5,3994.6,0.002]
[1758809279686,18.360945,3995.4,3994.7,0.792]
[1758809279873,18.360945,3995.4,3994.6,0.002]
[1758809279874,4.51,3995.3,3994.9,0.792]
[1758809280210,2.29009,3995.2,3994.6,2.50536088]
[1758809280385,2.50306625,3995.1,3994.7,0.792]
[1758809280559,7.06649,3995.0,3994.6,0.002]
[1758809280899,2.176905,3995.0,3994.7,0.792]
[1758809281050,0.2341,3995.8,3995.0,0.792]
[1758809281387,6.519037,3995.7,3995.6,0.792]
[1758809281687,7.24683424,3995.7,3995.0,0.792]
[1758809281891,11.664707,3995.6,3994.6,0.002]
[1758809282094,0.1248,3995.4,3994.8,0.792]
[1758809282278,0.1248,3995.4,3994.6,0.002]
[1758809282279,13.120866,3994.8,3994.6,0.002]
[1758809282594,8.210802,3994.7,3994.6,0.002]
[1758809282755,7.952802,3994.7,3994.6,0.002]
[1758809282958,7.347346,3994.7,3994.6,0.002]
[1758809283758,26.68075489,3994.7,3994.6,0.002]
[1758809284003,8.312775,3994.7,3994.6,0.002]
[1758809284205,10.81529189,3994.7,3994.6,0.002]
[1758809284501,11.44539189,3994.7,3994.6,0.002]
[1758809284902,10.64261689,3994.7,3994.6,0.002]
[1758809285068,3.890436,3994.7,3994.6,0.002]
[1758809285402,7.350696,3994.7,3994.6,0.002]
[1758809285600,7.887186,3994.7,3994.6,0.002]
[1758809285802,4.509,3994.7,3994.6,0.002]
[1758809286168,0.1248,3995.1,3994.6,0.002]
[1758809286370,0.39266165,3995.5,3994.6,0.002]
[1758809286371,22.917822,3995.0,3994.7,0.792]
[1758809286591,7.800512,3994.9,3994.7,0.792]
[1758809286775,4.509,3994.9,3994.7,0.792]
[1758809287165,14.29193023,3994.8,3994.7,0.792]
[1758809287367,18.45700889,3994.7,3994.6,0.1268]
[1758809287567,17.42070989,3994.7,3994.6,0.002]
[1758809287803,17.95069989,3994.7,3994.6,0.002]
[1758809288168,15.78627989,3994.7,3994.6,0.002]
[1758809288373,19.252215,3994.7,3994.6,0.002]
[1758809288609,16.17893789,3994.7,3994.6,0.002]
[1758809288795,12.101705,3994.7,3994.6,0.002]
[1758809289103,14.60502189,3994.7,3994.6,0.002]
[1758809289418,14.84382189,3994.7,3994.6,0.002]
[1758809289576,22.67608889,3994.7,3994.6,0.002]
[1758809289777,22.44105589,3994.7,3994.6,0.002]
[1758809290007,22.42489489,3994.7,3994.6,0.002]
[1758809290201,21.86968989,3994.7,3994.6,0.002]
[1758809290417,5.50356758,3994.3,3994.2,0.002]
[1758809290598,15.02740858,3994.3,3994.2,0.002]
[1758809290974,5.594711,3994.3,3994.2,0.002]
[1758809291180,14.580432,3994.3,3994.2,0.002]
[1758809291374,13.626468,3994.3,3994.2,0.794]
[1758809291591,0.2367,3995.7,3994.2,0.002]
[1758809291793,2.50281566,3995.5,3994.5,0.792]
[1758809291997,27.562921,3995.4,3994.5,0.792]
[1758809292301,22.050444,3995.3,3994.6,0.792]
[1758809292626,4.508,3995.2,3994.8,0.792]
[1758809292806,2.50280228,3995.6,3995.0,0.792]
[1758809292995,12.11056284,3995.5,3995.0,0.792]
[1758809293197,4.884049,3995.4,3995.0,0.792]
[1758809293433,3.082097,3995.4,3994.6,0.792]
[1758809293589,4.508,3995.5,3994.9,0.792]
[1758809293793,4.508,3995.5,3994.9,3.29519056]
[1758809294019,4.508,3995.5,3995.3,0.792]
[1758809294230,4.508,3995.5,3995.4,1.4753]
[1758809294434,2.086,3996.2,3995.5,3.29480489]
[1758809294620,0.17574602,3996.4,3995.7,0.792]
[1758809294815,0.2367,3996.8,3996.0,0.792]
[1758809294816,4.285035,3996.3,3996.0,0.792]
[1758809295015,4.285035,3996.3,3995.5,2.50275413]
[1758809295016,4.508,3996.2,3995.6,0.2307]
[1758809295325,4.300147,3996.1,3995.7,0.792]
[1758809295524,4.300147,3996.1,3994.3,0.49635022]
[1758809295525,6.80263497,3996.1,3995.5,0.792]
[1758809295694,14.798819,3996.0,3995.4,0.792]
[1758809295898,0.17682628,3996.6,3995.8,0.792]
[1758809296117,7.25355405,3996.5,3995.8,3.52532254]
[1758809296430,11.76635314,3996.4,3995.8,1.0227]
[1758809296590,4.779951,3996.3,3995.8,1.0227]
[1758809296795,4.275951,3996.3,3995.8,2.50259592]
[1758809297116,4.507,3996.2,3995.9,1.4753]
[1758809297316,4.217353,3996.5,3994.2,2.50560498]
[1758809297317,4.507,3996.4,3996.3,0.792]
[1758809297629,8.723951,3996.4,3996.0,3.18580231]
[1758809297830,0.001,3996.2,3996.1,0.792]
[1758809297992,0.001,3996.2,3996.1,3.97773987]
[1758809298329,0.001,3996.2,3994.7,3.6594]
[1758809298330,0.001,3996.2,3995.8,0.792]
[1758809298491,0.001,3996.2,3995.9,2.50255719]
[1758809298696,0.001,3996.2,3996.1,3.29443987]
[1758809298894,0.001,3996.2,3996.1,0.792]
[1758809299437,0.001,3996.2,3996.1,1.0227]
[1758809299943,0.001,3996.2,3996.1,4.00276426]
[1758809300235,2.086,3997.3,3997.0,2.5018705]
[1758809300433,0.3924471,3997.5,3997.3,0.792]
[1758809300598,4.506,3997.7,3997.4,0.02501626]
[1758809300806,3.71296,3997.6,3997.1,0.792]
[1758809301125,3.71296,3997.6,3996.6,1.0227]
[1758809301330,0.001,3997.8,3996.8,0.792]
[1758809301544,0.001,3997.8,3997.7,3.29343832]
[1758809301830,0.001,3997.8,3997.7,3.41823832]
[1758809302131,0.001,3997.8,3997.7,0.9168]
[1758809302518,0.001,3997.8,3996.7,0.792]
[1758809302519,12.310315,3997.8,3996.7,0.792]
[1758809302721,3.19029,3997.7,3997.3,0.792]
[1758809302924,2.50168863,3997.3,3997.2,0.1248]
[1758809303128,4.505,3997.3,3996.8,0.1248]
[1758809303310,2.50182462,3997.1,3996.8,0.1248]
[1758809303512,19.353817,3997.0,3996.8,0.1248]
[1758809303713,7.005939,3996.9,3995.7,0.4526]
[1758809303929,7.62014,3996.9,3996.4,0.1248]
[1758809304142,8.616042,3996.8,3996.5,0.792]
[1758809304343,4.504,3996.8,3996.5,0.792]
[1758809304551,4.504,3996.8,3996.4,0.1248]
[1758809304853,0.39241455,3997.1,3996.6,0.792]
[1758809305028,4.504,3997.1,3996.6,0.792]
[1758809305230,4.504,3997.1,3996.7,0.6833]
[1758809305418,0.63011067,3997.8,3997.1,0.792]
[1758809305751,10.416471,3997.7,3997.3,0.792]
[1758809305921,5.912471,3997.6,3997.3,0.792]
[1758809306118,4.504,3997.6,3997.4,0.792]
[1758809306318,0.39341067,3997.8,3997.7,0.792]
[1758809306513,0.001,3997.8,3997.7,1.2446]
[1758809306718,0.001,3997.8,3997.7,3.29343832]
[1758809306918,0.001,3997.8,3997.7,0.792]
[1758809307245,0.001,3997.8,3997.7,3.29343832]
[1758809307434,0.001,3997.8,3997.7,3.97673832]
[1758809307835,0.001,3997.8,3997.7,4.0017527]
[1758809308151,0.001,3997.8,3997.7,4.65208367]
[1758809309646,0.0002,3997.8,3997.7,4.65208367]
[1758809309944,0.0002,3997.8,3997.7,4.62706929]
[1758809310742,0.0002,3997.8,3997.7,4.65208367]
[1758809311374,0.0002,3997.8,3997.7,7.65208367]
[1758809311535,0.0002,3997.8,3997.7,7.62706929]
[1758809311731,0.0002,3997.8,3997.7,4.62706929]
[1758809311924,0.0002,3997.8,3997.7,9.12806929]
[1758809312649,0.0002,3997.8,3997.7,4.62706929]
[1758809312850,0.0002,3997.8,3997.7,11.21306929]
[1758809313423,0.0002,3997.8,3997.7,4.62706929]
[1758809313753,0.0002,3997.8,3997.7,14.23708367]
[1758809313957,0.2367,3999.9,3999.3,0.792]
[1758809314160,2.456286,3999.8,3999.3,0.792]
[1758809314326,0.5042,3999.7,3999.3,0.792]
[1758809314524,9.188508,3999.6,3998.7,0.792]
[1758809314754,0.2367,3999.6,3999.0,2.50057576]
[1758809314958,0.2367,3999.6,3999.5,0.792]
[1758809315258,0.2367,3999.9,3999.5,0.792]
[1758809315553,2.49981612,4000.3,3999.5,0.792]
[1758809315554,0.2367,4000.4,3999.5,0.792]
[1758809315754,0.2675,4000.7,3999.9,0.792]
[1758809315755,2.198286,4000.3,3999.9,0.792]
[1758809315955,2.4165,3999.9,3999.3,2.50038845]
[1758809316155,2.4165,3999.9,3998.6,2.50083949]
[1758809316156,3.293656,3999.8,3999.4,3.29235279]
[1758809316359,0.2367,3999.7,3999.4,3.29235279]
[1758809316660,0.2367,3999.7,3999.6,0.792]
[1758809316951,0.2367,3999.7,3999.2,7.79145793]
[1758809317158,0.2367,3999.7,3999.2,3.29245793]
[1758809317338,0.2367,3999.7,3999.4,0.792]
[1758809318074,0.001,3999.8,3999.4,3.29236928]
[1758809318237,0.001,3999.8,3999.4,0.792]
[1758809318642,0.001,3999.8,3999.4,3.29236039]
[1758809318838,0.001,3999.8,3999.6,0.792]
[1758809319040,0.001,3999.8,3999.5,0.792]
[1758809319910,0.001,3999.8,3999.7,0.792]
[1758809321357,20.509157,3999.7,3998.6,0.2303]
[1758809321569,0.2487,3999.6,3998.8,4.56773805]
[1758809321748,7.304388,3999.6,3998.8,2.067]
[1758809321948,4.158,3999.5,3998.4,0.2303]
[1758809322153,2.50046731,3999.3,3998.5,2.712]
[1758809322441,4.67670405,3999.2,3998.6,4.496]
[1758809322795,2.74909592,3999.4,3998.6,6.99686197]
[1758809322981,3.0,3999.2,3995.5,1.0]
[1758809323272,3.0,3999.0,3998.1,2.50114683]
[1758809323470,3.0,3999.0,3998.0,2.50123131]
[1758809323471,7.594005,3998.9,3998.0,2.50123131]
[1758809323669,0.2487,3998.9,3998.0,0.792]
[1758809323970,5.7491404,3999.3,3998.2,0.792]
[1758809324180,5.7491404,3999.3,3998.1,2.52614861]
[1758809324181,3.0,3999.1,3998.1,0.02501188]
[1758809324356,7.230824,3999.2,3998.1,0.02501188]
[1758809324357,2.61498,3999.0,3998.3,0.792]
[1758809324557,5.5005647,3999.1,3998.4,0.792]
[1758809324758,6.681442,3999.0,3997.8,0.4497]
[1758809324958,7.197642,3999.0,3998.0,0.792]
[1758809325157,2.50082035,3998.7,3998.0,0.792]
[1758809325362,2.50076984,3998.8,3997.9,3.29329901]
[1758809325673,31.45860284,3998.8,3998.6,0.792]
[1758809325849,31.45860284,3998.8,3998.5,0.1248]
[1758809325850,11.362317,3998.6,3998.5,0.1248]
[1758809326049,6.319927,3998.6,3998.5,0.1248]
[1758809326254,2.132927,3998.6,3998.5,0.1248]
[1758809326559,7.668016,3998.8,3998.6,0.792]
[1758809326759,2.62536784,3999.1,3998.6,0.792]
[1758809326961,2.30732,3999.0,3998.6,0.792]
[1758809327147,0.1248,3999.1,3998.6,0.792]
[1758809327353,0.39226188,3999.2,3998.6,0.02500875]
[1758809327566,3.837495,3999.1,3998.9,0.792]
[1758809327856,0.2487,3999.1,3998.9,0.792]
[1758809328165,14.992926,3999.0,3998.9,0.792]
[1758809328356,20.10374738,3998.9,3998.2,2.629]
[1758809328558,15.632101,3998.9,3998.5,0.1248]
[1758809328758,0.2487,3998.8,3998.5,0.1248]
[1758809328955,0.2487,3998.7,3998.5,0.1248]
[1758809329177,0.2487,3998.7,3998.6,0.792]
[1758809329709,0.3923,3999.1,3998.6,0.792]
[1758809329895,14.142072,3999.0,3998.6,0.792]
[1758809330096,8.675965,3998.9,3998.6,0.792]
[1758809330396,2.068589,3998.9,3998.6,0.792]
[1758809330578,2.577467,3999.0,3998.6,0.792]
[1758809330774,0.1248,3999.4,3998.8,0.792]
[1758809330980,2.50043757,3999.3,3998.8,0.792]
[1758809331181,2.50056761,3999.1,3998.8,0.792]
[1758809331403,2.819834,3999.0,3998.8,0.792]
[1758809331774,5.65942,3999.0,3998.8,0.792]
[1758809332209,2.50061696,3999.1,3998.8,0.792]
[1758809332389,5.65942,3999.0,3998.8,0.792]
[1758809332778,5.50051943,3999.2,3998.8,0.792]
[1758809333086,2.439793,3999.1,3998.8,0.792]
[1758809333291,4.94040004,3999.1,3998.8,0.792]
[1758809333491,14.46799238,3999.0,3998.8,0.792]
[1758809333710,11.842232,3998.9,3998.8,0.792]
[1758809333925,2.222787,3999.0,3998.8,0.792]
[1758809334080,2.236483,3999.0,3998.8,0.792]
[1758809334278,0.1248,3999.4,3998.8,0.792]
[1758809334502,3.0,3999.2,3998.8,0.792]
[1758809334712,2.50075022,3998.8,3997.8,0.792]
[1758809334923,30.0,3998.7,3998.6,0.792]
[1758809335230,28.720729,3998.7,3998.6,0.792]
[1758809335391,18.073641,3998.6,3998.5,0.1248]
[1758809335596,0.2487,3998.6,3998.2,0.1248]
[1758809335782,0.2487,3998.6,3997.8,0.002]
[1758809335783,19.735841,3998.5,3997.9,0.1248]
[1758809335983,2.50124507,3998.1,3997.9,0.1248]
[1758809336183,2.50106592,3998.3,3997.9,0.1248]
[1758809336385,4.77699437,3998.2,3997.9,0.1248]
[1758809336690,2.50108192,3998.3,3997.9,0.1248]
[1758809336893,2.351072,3998.2,3997.9,0.1248]
[1758809337297,2.50119168,3998.1,3997.9,0.1248]
[1758809337517,19.526975,3998.5,3997.9,0.1248]
[1758809337518,6.679435,3998.0,3997.9,0.1248]
[1758809337817,11.08135,3998.4,3997.9,0.1248]
[1758809337978,7.492,3998.9,3997.8,0.002]
[1758809337979,2.50131318,3997.9,3997.8,0.002]
[1758809338310,35.50131318,3997.9,3997.8,0.002]
[1758809338511,35.75001318,3997.9,3997.8,0.002]
[1758809338810,14.32243318,3997.9,3997.8,0.002]
[1758809339588,19.31452618,3997.9,3997.8,0.002]
[1758809339785,2.179264,3997.9,3997.8,0.002]
[1758809340021,3.51715348,3998.5,3997.9,0.792]
[1758809340348,0.39235348,3998.5,3997.9,0.02501313]
[1758809340485,0.39235348,3998.5,3997.8,0.8068]
[1758809340486,0.39235348,3998.5,3998.0,0.95438131]
[1758809340830,2.50092355,3998.6,3998.0,0.95438131]
[1758809340831,0.1248,3999.5,3998.4,0.1248]
[1758809340990,11.754441,3999.4,3998.9,0.792]
[1758809341183,0.5162,3999.3,3998.3,0.792]
[1758809341514,5.084614,3999.2,3998.6,0.792]
[1758809341719,2.594131,3999.1,3998.9,0.792]
[1758809341922,3.096,3999.0,3998.9,0.792]
[1758809342223,4.294702,3999.4,3999.3,0.792]
[1758809342425,3.079528,3999.5,3999.3,0.792]
[1758809342601,7.46841446,3999.6,3999.3,0.792]
[1758809342797,0.001,3999.8,3999.3,0.792]
[1758809342998,4.01279,3999.7,3999.3,0.792]
[1758809343198,2.50026771,3999.6,3999.3,0.792]
[1758809343425,4.400331,3999.5,3999.3,0.792]
[1758809343723,2.50031498,3999.5,3999.3,0.792]
[1758809343930,11.688262,3999.4,3999.3,0.792]
[1758809344155,32.50037505,3999.4,3999.3,0.792]
[1758809344309,0.001,3999.8,3999.3,0.792]
[1758809344507,3.728,3999.7,3999.3,1.5011]
[1758809345119,2.50025002,3999.6,3999.3,0.792]
[1758809345318,0.001,3999.8,3999.3,0.792]
[1758809345542,2.50030126,3999.6,3999.3,0.792]
[1758809345741,15.212034,3999.5,3999.3,0.792]
[1758809345912,0.001,3999.8,3999.3,0.2449]
[1758809346114,0.001,3999.8,3999.4,1.6259]
[1758809346433,7.5952045,3999.7,3999.4,0.9168]
[1758809346742,0.001,3999.8,3999.4,0.9168]
[1758809347042,0.001,3999.8,3999.4,0.3697]
[1758809347245,0.001,3999.8,3999.5,0.792]
[1758809348049,0.001,3999.8,3999.5,1.2562]
[1758809348245,0.001,3999.8,3999.5,1.5011]
[1758809349138,0.001,3999.8,3999.5,4.00140398]
[1758809349547,0.001,3999.8,3999.5,4.66407383]
[1758809349708,0.001,3999.8,3999.7,3.29218751]
[1758809349916,0.001,3999.8,3999.7,3.41698751]
[1758809350213,0.1248,4001.2,3999.7,3.7099]
[1758809350518,0.51690733,4001.8,4001.2,3.29124068]
[1758809350725,0.51690733,4001.8,4001.2,1.0369]
[1758809350726,2.201428,4001.7,4001.2,1.0369]
[1758809350918,2.201428,4001.7,4001.4,0.792]
[1758809351144,0.291,4002.0,4001.6,0.792]
[1758809351349,0.45253482,4002.2,4001.8,0.792]
[1758809351644,0.45253482,4002.2,4002.0,0.792]
[1758809351848,0.45253482,4002.2,4002.1,3.94678818]
[1758809352017,0.45253482,4002.2,4002.1,4.07158818]
[1758809352212,0.45253482,4002.2,4002.1,1.5729]
[1758809353429,0.45253482,4002.2,4002.1,4.07158818]
[1758809353629,0.45253482,4002.2,4002.1,2.23243824]
[1758809353829,0.45253482,4002.2,4002.1,1.5729]
[1758809354174,0.45253482,4002.2,4002.1,4.07158818]
[1758809354323,0.45253482,4002.2,4002.1,1.1419]
[1758809354663,0.45253482,4002.2,4002.1,1.5729]
[1758809354849,0.45253482,4002.2,4002.1,4.07158818]
[1758809355461,0.45253482,4002.2,4002.1,1.5729]
[1758809355835,0.56141537,4003.2,4002.1,1.5729]
[1758809355836,0.01395019,4003.2,4002.2,3.2906018]
[1758809356035,2.49813251,4003.0,4002.2,0.792]
[1758809356237,6.544121,4002.9,4002.2,0.792]
[1758809356436,5.877078,4002.8,4002.2,0.792]
[1758809356638,2.49812965,4003.0,4002.2,0.792]
[1758809356977,3.0,4003.2,4002.2,0.792]
[1758809356978,6.069121,4002.9,4002.2,0.792]
[1758809357262,7.359434,4003.2,4002.2,0.792]
[1758809357443,7.076392,4003.2,4002.3,2.49856332]
[1758809357644,4.482,4003.5,4002.6,0.792]
[1758809357853,4.239656,4003.4,4002.6,0.792]
[1758809358025,4.239656,4003.4,4002.4,1.4481]
[1758809358220,0.15449204,4003.5,4002.6,0.792]
[1758809358425,0.15449204,4003.5,4002.8,0.792]
[1758809358757,2.49787171,4003.5,4002.8,0.792]
[1758809358963,2.49794597,4003.3,4002.7,0.792]
[1758809359179,5.914622,4003.2,4002.7,0.792]
[1758809359362,4.824152,4003.1,4002.6,0.792]
[1758809359563,2.72549466,4003.7,4002.8,0.792]
[1758809359888,3.0,4003.9,4002.9,0.792]
[1758809360079,3.0,4003.9,4002.9,0.81698188]
[1758809360292,0.2278,4004.1,4003.4,0.792]
[1758809360446,2.49732768,4004.3,4003.5,0.792]
[1758809360781,7.86707628,4004.5,4003.5,0.792]
[1758809360941,30.0,4004.4,4003.5,0.792]
[1758809361141,30.0,4004.4,4003.6,2.49775202]
[1758809361341,2.49695794,4004.9,4003.8,0.792]
[1758809361577,3.283778,4005.1,4003.8,0.792]
[1758809361578,6.718178,4004.8,4003.8,0.792]
[1758809361868,2.49700359,4004.8,4003.8,0.792]
[1758809362069,8.93239084,4004.7,4003.8,0.792]
[1758809362369,2.49719066,4004.5,4003.4,0.792]
[1758809362570,8.025324,4004.4,4003.4,0.792]
[1758809362945,0.4963,4004.3,4002.6,0.2251]
[1758809363140,0.4963,4004.3,4002.3,0.2251]
[1758809363141,2.49797273,4003.3,4002.3,0.2251]
[1758809363342,2.49806812,4003.1,4002.0,0.823]
[1758809363566,6.86539,4003.2,4002.1,3.10477007]
[1758809363567,2.72581311,4003.2,4002.1,3.10477007]
[1758809363869,20.139108,4003.1,4002.1,3.32987007]
[1758809364042,20.139108,4003.1,4002.1,0.83119633]
[1758809364243,22.63723179,4003.1,4002.1,0.83119633]
[1758809364474,2.49812379,4003.1,4002.2,0.792]
[1758809364670,2.49824738,4002.9,4001.9,0.431]
[1758809364853,10.248195,4002.8,4001.9,0.431]
[1758809365173,17.647179,4002.7,4001.3,2.4991295]
[1758809365372,4.7048,4002.6,4001.2,4.477]
[1758809365690,4.477,4002.7,4001.7,2.4989308]
[1758809365972,0.1248,4003.6,4002.5,2.6231811]
[1758809366140,11.71617987,4003.5,4002.7,0.792]
[1758809366340,11.71617987,4003.5,4002.7,0.1248]
[1758809366341,2.49796694,4003.3,4002.7,0.1248]
[1758809366549,2.498064,4003.1,4002.7,0.1248]
[1758809366768,4.477,4003.1,4002.7,0.1248]
[1758809367178,4.477,4003.1,4001.1,2.49926938]
[1758809367179,2.4984963,4002.5,4001.4,2.49911845]
[1758809367355,2.379349,4002.4,4002.3,0.1248]
[1758809367684,2.607149,4002.4,4002.3,0.9168]
[1758809367988,2.607149,4002.4,4001.1,0.2251]
[1758809367989,9.85014989,4002.4,4001.1,0.2251]
[1758809368176,2.49862765,4002.2,4001.9,0.1248]
[1758809368375,4.478913,4002.1,4001.9,0.1248]
[1758809368579,2.49875062,4002.0,4001.9,0.1248]
[1758809368779,2.49875062,4002.0,4000.8,0.6561]
[1758809368780,0.2278,4002.0,4000.8,0.6561]
[1758809368967,9.14636732,4001.9,4001.0,2.49936189]
[1758809369167,7.92048278,4001.8,4001.0,0.27494563]
[1758809369368,5.150597,4001.7,4000.9,0.6561]